fUST/lending_fUST_20250829
["ID","MTS","AMOUNT","RATE_DAILY","PERIOD"]
[381930138,1756415444391,-4000.0,0.00023608,2]
[381930139,1756415444403,-450.0,0.00023616,2]
[381930140,1756415444414,-201.93286099,0.00023621,2]
[381930141,1756415444425,-1396.52,0.00023835,2]
[381930142,1756415444436,-907.92,0.00023835,2]
[381930143,1756415444446,-1421.23,0.00023835,2]
[381930144,1756415444458,-2776.88,0.00023835,2]
[381930145,1756415444469,-1156.19,0.00023835,2]
[381930146,1756415444480,-995.56,0.00023835,2]
[381930147,1756415444491,-262.94831934,0.00023835,2]
[381930166,1756415446211,-221.97783536,0.00017075,2]
[381930167,1756415446221,-221.97783535,0.00019078,2]
[381930168,1756415446231,-480.0,0.00019178,2]
[381930169,1756415446241,-480.0,0.00019452,2]
[381930170,1756415446253,-480.0,0.00019726,2]
[381930171,1756415446264,-578.17539312,0.000199,2]
[381930172,1756415446274,-480.0,0.0002,2]
[381930173,1756415446284,-480.0,0.00020273,2]
[381930174,1756415446298,-480.0,0.00020547,2]
[381930175,1756415446308,-578.17539312,0.00021627,2]
[381930176,1756415446318,-578.17539312,0.00023353,2]
[381930177,1756415446328,-2662.96168066,0.00023835,2]
[381930178,1756415446338,-754.40337102,0.00023862,2]
[381930179,1756415446347,-1152.16681921,0.000239,2]
[381930180,1756415446357,-760.0,0.00023969,2]
[381930181,1756415446366,-736.0,0.00023971,2]
[381930182,1756415446375,-151.0,0.00024,5]
[381930183,1756415446384,-845.47023312,0.00024,7]
[381930184,1756415446394,-160.0,0.00024,7]
[381930185,1756415446403,-160.0,0.00024,7]
[381930186,1756415446413,-160.0,0.00024,7]
[381930187,1756415446423,-160.0,0.00024,7]
[381930188,1756415446432,-232.64478309,0.00024,7]
[381930189,1756415446442,-217.27834477,0.00024,7]
[381930190,1756415446451,-216.18903889,0.00024,3]
[381930191,1756415446460,-736.0,0.00024,2]
[381930192,1756415446470,-736.0,0.0002401,2]
[381930193,1756415446479,-736.0,0.00024075,2]
[381930194,1756415446489,-1396.52,0.00024109,2]
[381930195,1756415446498,-907.92,0.00024109,2]
[381930196,1756415446508,-1421.23,0.00024109,2]
[381930197,1756415446518,-2776.88,0.00024109,2]
[381930198,1756415446527,-1156.19,0.00024109,2]
[381930199,1756415446537,-995.56,0.00024109,2]
[381930200,1756415446547,-2925.91,0.00024109,2]
[381930201,1756415446556,-737.0,0.00024119,2]
[381930202,1756415446565,-736.0,0.00024152,2]
[381930203,1756415446575,-4500.0,0.00024156,2]
[381930204,1756415446584,-736.0,0.00024161,2]
[381930205,1756415446594,-155.754415,0.00024177,2]
[381930206,1756415446604,-153.723245,0.00024177,2]
[381930207,1756415446614,-151.0,0.000242,7]
[381930208,1756415446623,-151.0,0.000242,10]
[381930209,1756415446633,-736.0,0.00024211,2]
[381930210,1756415446642,-736.0,0.00024224,2]
[381930211,1756415446652,-736.0,0.00024245,2]
[381930212,1756415446661,-12500.0,0.00024262,7]
[381930213,1756415446670,-151.0,0.00024262,7]
[381930214,1756415446679,-151.0,0.00024262,7]
[381930215,1756415446689,-151.0,0.00024262,7]
[381930216,1756415446699,-161.65149,0.00024262,7]
[381930217,1756415446708,-151.0,0.00024262,7]
[381930218,1756415446717,-151.0,0.00024262,7]
[381930219,1756415446726,-705.651646,0.00024262,7]
[381930220,1756415446736,-705.651646,0.00024262,7]
[381930221,1756415446745,-705.651646,0.00024262,7]
[381930222,1756415446756,-705.651646,0.00024262,7]
[381930223,1756415446766,-151.0,0.00024262,7]
[381930224,1756415446775,-151.0,0.00024262,7]
[381930225,1756415446784,-357.441144,0.00024262,7]
[381930226,1756415446793,-357.441144,0.00024262,7]
[381930227,1756415446803,-357.441144,0.00024262,7]
[381930228,1756415446812,-357.441144,0.00024262,7]
[381930229,1756415446821,-845.47023312,0.000243,7]
[381930230,1756415446831,-160.0,0.000243,7]
[381930231,1756415446840,-232.64478309,0.000243,7]
[381930232,1756415446849,-160.0,0.000243,7]
[381930233,1756415446859,-217.27834477,0.000243,7]
[381930234,1756415446868,-216.18903889,0.000243,7]
[381930235,1756415446878,-417.15472785,0.000243,7]
[381930236,1756415446888,-1396.52,0.00024383,2]
[381930237,1756415446897,-907.92,0.00024383,2]
[381930238,1756415446906,-1421.23,0.00024383,2]
[381930239,1756415446916,-2776.88,0.00024383,2]
[381930240,1756415446928,-1156.19,0.00024383,2]
[381930241,1756415446938,-995.56,0.00024383,2]
[381930242,1756415446948,-2925.91,0.00024383,2]
[381930243,1756415446957,-151.0,0.00024384,2]
[381930244,1756415446966,-151.0,0.00024384,2]
[381930245,1756415446976,-151.0,0.00024384,2]
[381930246,1756415446989,-151.0,0.00024384,2]
[381930247,1756415446999,-500.0,0.00024384,2]
[381930248,1756415447008,-151.0,0.000244,7]
[381930249,1756415447017,-10132.29,0.000244,2]
[381930250,1756415447028,-151.0,0.000244,7]
[381930251,1756415447037,-151.0,0.000244,7]
[381930252,1756415447048,-151.0,0.000244,7]
[381930253,1756415447059,-151.0,0.000244,7]
[381930254,1756415447068,-151.0,0.000244,7]
[381930255,1756415447078,-165.864201,0.000244,7]
[381930256,1756415447087,-151.0,0.000244,7]
[381930257,1756415447097,-151.0,0.000244,7]
[381930258,1756415447107,-151.0,0.000244,7]
[381930259,1756415447116,-151.0,0.000244,7]
[381930260,1756415447125,-168.73472,0.000244,7]
[381930261,1756415447134,-151.0,0.000244,7]
[381930262,1756415447144,-151.0,0.000244,7]
[381930263,1756415447153,-151.0,0.000244,7]
[381930264,1756415447163,-151.0,0.000244,7]
[381930265,1756415447172,-151.0,0.000244,7]
[381930266,1756415447181,-800.0,0.00024466,2]
[381930267,1756415447193,-860.0,0.00024517,2]
[381930268,1756415447202,-736.0,0.00024545,2]
[381930269,1756415447211,-282.187861,0.00024545,7]
[381930270,1756415447221,-282.187861,0.00024545,7]
[381930271,1756415447239,-282.187861,0.00024545,7]
[381930272,1756415447248,-349.048369,0.00024545,7]
[381930273,1756415447257,-151.0,0.00024545,7]
[381930274,1756415447266,-282.187861,0.00024545,7]
[381930275,1756415447275,-349.048369,0.00024545,7]
[381930276,1756415447284,-151.0,0.00024545,7]
[381930277,1756415447293,-229.074469,0.00024545,7]
[381930278,1756415447304,-349.048369,0.00024545,7]
[381930279,1756415447313,-229.074469,0.00024545,7]
[381930280,1756415447323,-349.048369,0.00024545,7]
[381930281,1756415447332,-229.074469,0.00024545,7]
[381930282,1756415447341,-229.074469,0.00024545,7]
[381930283,1756415447351,-151.0,0.00024545,7]
[381930284,1756415447360,-151.0,0.00024545,7]
[381930285,1756415447370,-648.586232,0.00024545,7]
[381930286,1756415447380,-648.586232,0.00024545,7]
[381930287,1756415447390,-648.586232,0.00024545,7]
[381930288,1756415447400,-648.586232,0.00024545,7]
[381930289,1756415447409,-151.0,0.0002455,7]
[381930290,1756415447418,-151.0,0.0002455,7]
[381930291,1756415447427,-173.166456,0.0002455,7]
[381930292,1756415447436,-151.0,0.0002455,7]
[381930293,1756415447445,-151.0,0.0002455,7]
[381930294,1756415447454,-151.0,0.0002455,7]
[381930295,1756415447463,-151.0,0.0002455,7]
[381930296,1756415447472,-151.0,0.0002455,7]
[381930297,1756415447482,-151.0,0.0002455,7]
[381930298,1756415447491,-151.0,0.0002455,7]
[381930299,1756415447501,-151.0,0.0002455,7]
[381930300,1756415447511,-151.0,0.0002455,7]
[381930301,1756415447520,-151.0,0.0002455,7]
[381930302,1756415447528,-151.0,0.0002455,7]
[381930303,1756415447538,-151.0,0.0002455,7]
[381930304,1756415447547,-287.00824155,0.00024558,2]
[381930305,1756415447556,-154.812525,0.0002456,7]
[381930306,1756415447565,-154.812525,0.0002456,7]
[381930307,1756415447574,-152.121067,0.0002456,7]
[381930308,1756415447584,-154.812525,0.0002456,7]
[381930309,1756415447593,-154.812525,0.0002456,7]
[381930310,1756415447604,-736.0,0.00024594,2]
[381930311,1756415447614,-440.518247,0.000246,7]
[381930312,1756415447623,-440.518247,0.000246,7]
[381930313,1756415447632,-151.0,0.000246,7]
[381930314,1756415447640,-440.518247,0.000246,7]
[381930315,1756415447649,-440.518247,0.000246,7]
[381930316,1756415447659,-151.0,0.000246,7]
[381930317,1756415447669,-151.0,0.000246,7]
[381930318,1756415447678,-151.0,0.000246,7]
[381930319,1756415447687,-151.0,0.000246,7]
[381930320,1756415447696,-151.0,0.000246,7]
[381930321,1756415447705,-151.0,0.000246,7]
[381930322,1756415447714,-151.0,0.000246,7]
[381930323,1756415447723,-151.0,0.000246,7]
[381930324,1756415447732,-151.0,0.000246,7]
[381930325,1756415447741,-230.78303,0.000246,7]
[381930326,1756415447750,-155.754415,0.0002464,7]
[381930327,1756415447759,-500.0,0.00024646,9]
[381930328,1756415447768,-4000.12,0.00024648,2]
[381930329,1756415447777,-151.0,0.00024648,7]
[381930330,1756415447787,-151.0,0.00024648,7]
[381930331,1756415447796,-736.0,0.00024648,2]
[381930332,1756415447805,-78790.08990127,0.0002465,2]
[381930337,1756416019143,-600.0,0.00019636,20]
[381930338,1756416056713,227.575494,0.00013699,2]
[381930340,1756416221288,2667.51558325,0.00030206,60]
[381930377,1756416632299,-300.0,0.00017999,2]
[381930378,1756416632308,-238.72095541,0.00017999,2]
[381930379,1756416632318,-269.73122684,0.00017999,2]
[381930381,1756416632327,-635.53920605,0.00017999,2]
[381930383,1756416632336,-500.0,0.00017999,2]
[381930385,1756416632346,-7225.62490444,0.00018,2]
[381930387,1756416632357,-10614.5,0.00018,2]
[381930403,1756416638240,-443.70215109,0.00018,2]
[381930404,1756416638405,-2359.40916201,0.00018,2]
[381930434,1756416640350,-647.51848788,0.00018,2]
[381930435,1756416640360,-300.0,0.00018359,2]
[381930436,1756416640369,-300.0,0.00018359,2]
[381930437,1756416640379,-300.0,0.00018359,2]
[381930438,1756416640388,-471.120692,0.0001887,2]
[381930439,1756416640398,-27364.89018952,0.00019063,2]
[381930440,1756416640407,-229.60659324,0.00019173,2]
[381930441,1756416640418,-480.0,0.00019178,2]
[381930442,1756416640426,-158.22,0.00019178,2]
[381930443,1756416640435,-480.0,0.00019178,2]
[381930444,1756416640444,-480.0,0.00019178,2]
[381930445,1756416640454,-480.0,0.00019178,2]
[381930446,1756416640464,-480.0,0.00019178,2]
[381930448,1756416640474,-480.0,0.00019178,2]
[381930449,1756416640485,-480.0,0.00019178,2]
[381930450,1756416640494,-480.0,0.00019178,2]
[381930451,1756416640504,-867.14,0.00019178,2]
[381930452,1756416640513,-480.0,0.00019248,2]
[381930453,1756416640522,-480.0,0.00019248,2]
[381930454,1756416640532,-480.0,0.00019248,2]
[381930455,1756416640541,-480.0,0.00019249,2]
[381930456,1756416640550,-480.0,0.00019249,2]
[381930457,1756416640558,-432.21,0.00019249,2]
[381930458,1756416640567,-480.0,0.00019249,2]
[381930459,1756416640577,-480.0,0.00019249,2]
[381930460,1756416640586,-480.0,0.00019249,2]
[381930461,1756416640596,-480.0,0.00019249,2]
[381930462,1756416640606,-480.0,0.00019249,2]
[381930463,1756416640615,-480.0,0.00019249,2]
[381930464,1756416640625,-480.0,0.00019249,2]
[381930465,1756416640634,-505.88,0.00019249,2]
[381930466,1756416640646,-480.0,0.00019249,2]
[381930467,1756416640655,-480.0,0.00019249,2]
[381930468,1756416640664,-480.0,0.00019249,2]
[381930469,1756416640673,-407.4,0.00019249,2]
[381930470,1756416640682,-480.0,0.00019249,2]
[381930471,1756416640692,-480.0,0.00019249,2]
[381930472,1756416640703,-480.0,0.00019249,2]
[381930473,1756416640714,-480.0,0.00019249,2]
[381930474,1756416640725,-330.84,0.00019249,2]
[381930475,1756416640735,-305.81,0.00019249,2]
[381930476,1756416640745,-480.0,0.00019249,2]
[381930477,1756416640755,-480.0,0.00019249,2]
[381930478,1756416640765,-480.0,0.00019249,2]
[381930479,1756416640775,-480.0,0.00019249,2]
[381930480,1756416640784,-480.0,0.00019249,2]
[381930481,1756416640795,-1966.96,0.00019249,2]
[381930482,1756416640806,-746.67,0.00019249,2]
[381930483,1756416640816,-480.0,0.00019249,2]
[381930484,1756416640825,-2083.48,0.00019249,2]
[381930485,1756416640834,-1127.94,0.00019249,2]
[381930486,1756416640843,-480.0,0.00019249,2]
[381930487,1756416640853,-480.0,0.00019249,2]
[381930488,1756416640862,-480.0,0.00019249,2]
[381930489,1756416640871,-480.0,0.00019249,2]
[381930490,1756416640880,-849.03,0.00019249,2]
[381930491,1756416640889,-1337.05,0.00019249,2]
[381930492,1756416640900,-480.0,0.0001925,2]
[381930493,1756416640916,-480.0,0.0001925,2]
[381930494,1756416640927,-480.0,0.0001925,2]
[381930495,1756416640936,-480.0,0.0001925,2]
[381930496,1756416640946,-480.0,0.0001925,2]
[381930497,1756416640956,-480.0,0.0001925,2]
[381930498,1756416640965,-480.0,0.0001925,2]
[381930499,1756416640974,-72320.9628878,0.00019252,2]
[381930521,1756416646181,-1747.06300889,0.00019252,2]
[381930522,1756416646238,-7652.97867399,0.00019252,2]
[381930523,1756416646249,-55535.92730138,0.00019252,2]
[381930524,1756416646258,-500.0,0.00019273,2]
[381930525,1756416646267,-500.0,0.00019273,2]
[381930526,1756416646276,-500.0,0.00019273,2]
[381930527,1756416646286,-500.0,0.00019273,2]
[381930528,1756416646296,-569.61629274,0.00019273,2]
[381930529,1756416646305,-500.0,0.00019273,2]
[381930530,1756416646314,-500.0,0.00019273,2]
[381930531,1756416646323,-500.0,0.00019273,2]
[381930532,1756416646334,-500.0,0.00019273,2]
[381930533,1756416646344,-500.0,0.00019273,2]
[381930534,1756416646353,-480.0,0.00019452,2]
[381930535,1756416646362,-480.0,0.00019452,2]
[381930536,1756416646372,-480.0,0.00019452,2]
[381930537,1756416646382,-480.0,0.00019452,2]
[381930538,1756416646391,-867.14,0.00019452,2]
[381930539,1756416646401,-480.0,0.00019522,2]
[381930540,1756416646412,-480.0,0.00019522,2]
[381930541,1756416646422,-480.0,0.00019522,2]
[381930542,1756416646431,-480.0,0.00019523,2]
[381930543,1756416646440,-480.0,0.00019523,2]
[381930544,1756416646451,-480.0,0.00019523,2]
[381930545,1756416646460,-480.0,0.00019523,2]
[381930546,1756416646470,-480.0,0.00019523,2]
[381930547,1756416646480,-480.0,0.00019523,2]
[381930548,1756416646490,-1966.96,0.00019523,2]
[381930549,1756416646500,-746.67,0.00019523,2]
[381930550,1756416646510,-480.0,0.00019523,2]
[381930551,1756416646519,-2083.48,0.00019523,2]
[381930552,1756416646529,-1127.94,0.00019523,2]
[381930553,1756416646539,-480.0,0.00019523,2]
[381930554,1756416646549,-849.03,0.00019523,2]
[381930555,1756416646558,-1337.05,0.00019523,2]
[381930556,1756416646568,-480.0,0.00019524,2]
[381930557,1756416646577,-480.0,0.00019524,2]
[381930558,1756416646587,-480.0,0.00019524,2]
[381930559,1756416646597,-480.0,0.00019524,2]
[381930560,1756416646606,-600.0,0.00019561,20]
[381930561,1756416646616,-420.0,0.00019639,2]
[381930562,1756416646625,-480.0,0.00019726,2]
[381930563,1756416646634,-480.0,0.00019726,2]
[381930564,1756416646643,-867.14,0.00019726,2]
[381930565,1756416646652,-480.0,0.00019796,2]
[381930566,1756416646662,-480.0,0.00019796,2]
[381930567,1756416646671,-316.32956501,0.00019796,2]
[381930568,1756416646680,-480.0,0.00019797,2]
[381930569,1756416646690,-1966.96,0.00019797,2]
[381930570,1756416646700,-746.67,0.00019797,2]
[381930571,1756416646709,-480.0,0.00019797,2]
[381930572,1756416646718,-2083.48,0.00019797,2]
[381930573,1756416646727,-1127.94,0.00019797,2]
[381930574,1756416646737,-480.0,0.00019797,2]
[381930575,1756416646746,-849.03,0.00019797,2]
[381930576,1756416646755,-1337.05,0.00019797,2]
[381930577,1756416646764,-390.96,0.00019798,2]
[381930578,1756416646773,-480.0,0.00019798,2]
[381930579,1756416646782,-480.0,0.00019798,2]
[381930580,1756416646792,-298.49029,0.00019863,2]
[381930581,1756416646801,-3300.63807967,0.000199,2]
[381930582,1756416646810,-500.0,0.00019973,2]
[381930583,1756416646819,-40510.61968081,0.0002,2]
[381930585,1756417182526,228.839803,0.00013699,2]
[381930629,1756417832415,-2215.48550408,0.00017885,2]
[381930631,1756417832425,-300.0,0.00017985,2]
[381930633,1756417832434,-480.0,0.00017985,2]
[381930635,1756417832444,-500.0,0.00017986,2]
[381930637,1756417832453,-500.0,0.00017986,2]
[381930639,1756417832463,-500.0,0.00017986,2]
[381930641,1756417832472,-500.0,0.00017986,2]
[381930643,1756417832481,-434.3386948,0.00017986,2]
[381930645,1756417832490,-500.0,0.00017986,2]
[381930647,1756417832500,-500.0,0.00017986,2]
[381930649,1756417832509,-235.560346,0.00018164,2]
[381930651,1756417832518,-167.10466878,0.00019177,2]
[381930653,1756417832528,-480.0,0.00019178,2]
[381930654,1756417832537,-480.0,0.00019178,2]
[381930655,1756417832546,-480.0,0.00019178,2]
[381930657,1756417832556,-480.0,0.00019178,2]
[381930659,1756417832565,-480.0,0.00019178,2]
[381930661,1756417832574,-96.57851527,0.00019178,2]
[381930687,1756417838441,-383.42148473,0.00019178,2]
[381930688,1756417838452,-122.33246555,0.00019178,2]
[381930689,1756417838503,-357.66753445,0.00019178,2]
[381930690,1756417838512,-1000.0,0.00019178,2]
[381930691,1756417838522,-480.0,0.00019178,2]
[381930692,1756417838532,-480.0,0.00019178,2]
[381930693,1756417838542,-480.0,0.00019178,2]
[381930694,1756417838551,-480.0,0.00019178,2]
[381930695,1756417838560,-480.0,0.00019178,2]
[381930696,1756417838569,-480.0,0.00019178,2]
[381930697,1756417838579,-480.0,0.00019178,2]
[381930698,1756417838588,-480.0,0.00019178,2]
[381930699,1756417838597,-480.0,0.00019178,2]
[381930700,1756417838606,-480.0,0.00019178,2]
[381930701,1756417838615,-480.0,0.00019178,2]
[381930702,1756417838625,-480.0,0.00019178,2]
[381930703,1756417838635,-480.0,0.00019178,2]
[381930704,1756417838644,-480.0,0.00019178,2]
[381930705,1756417838653,-481.62317366,0.00019178,2]
[381930706,1756417838662,-480.0,0.00019178,2]
[381930707,1756417838672,-480.0,0.00019178,2]
[381930708,1756417838681,-480.0,0.00019178,2]
[381930709,1756417838690,-606.49,0.00019178,2]
[381930710,1756417838699,-480.0,0.00019178,2]
[381930711,1756417838708,-480.0,0.00019178,2]
[381930712,1756417838717,-513.37,0.00019178,2]
[381930713,1756417838727,-480.0,0.00019178,2]
[381930714,1756417838735,-481.37531657,0.00019178,2]
[381930715,1756417838745,-480.0,0.00019178,2]
[381930716,1756417838754,-480.0,0.00019178,2]
[381930717,1756417838763,-480.0,0.00019178,2]
[381930718,1756417838773,-480.0,0.00019178,2]
[381930719,1756417838782,-480.0,0.00019178,2]
[381930720,1756417838791,-480.0,0.00019178,2]
[381930721,1756417838800,-480.0,0.00019178,2]
[381930722,1756417838818,-198.58,0.00019178,2]
[381930723,1756417838830,-480.0,0.00019178,2]
[381930724,1756417838841,-480.0,0.00019178,2]
[381930725,1756417838851,-480.0,0.00019178,2]
[381930726,1756417838860,-480.0,0.00019178,2]
[381930727,1756417838869,-514.8,0.00019178,2]
[381930728,1756417838878,-480.0,0.00019178,2]
[381930729,1756417838889,-480.0,0.00019178,2]
[381930730,1756417838900,-480.0,0.00019178,2]
[381930731,1756417838912,-480.0,0.00019178,2]
[381930732,1756417838922,-480.0,0.00019178,2]
[381930733,1756417838931,-480.0,0.00019178,2]
[381930734,1756417838941,-480.0,0.00019178,2]
[381930735,1756417838951,-480.0,0.00019178,2]
[381930736,1756417838960,-480.0,0.00019178,2]
[381930737,1756417838970,-480.0,0.00019178,2]
[381930738,1756417838979,-480.0,0.00019178,2]
[381930739,1756417838990,-480.0,0.00019178,2]
[381930740,1756417839001,-480.0,0.00019178,2]
[381930741,1756417839011,-480.0,0.00019178,2]
[381930742,1756417839021,-480.0,0.00019178,2]
[381930743,1756417839030,-501.94,0.00019178,2]
[381930744,1756417839039,-480.0,0.00019178,2]
[381930745,1756417839048,-560.01,0.00019178,2]
[381930746,1756417839059,-480.0,0.00019178,2]
[381930747,1756417839068,-984.96,0.00019178,2]
[381930748,1756417839078,-480.0,0.00019178,2]
[381930749,1756417839087,-480.0,0.00019178,2]
[381930750,1756417839260,-558.78,0.00019178,2]
[381930751,1756417839274,-480.0,0.00019178,2]
[381930752,1756417839285,-480.0,0.00019178,2]
[381930753,1756417839294,-480.0,0.00019178,2]
[381930754,1756417839305,-480.0,0.00019178,2]
[381930755,1756417839314,-480.0,0.00019178,2]
[381930756,1756417839324,-480.0,0.00019178,2]
[381930757,1756417839334,-480.0,0.00019178,2]
[381930758,1756417839343,-480.0,0.00019178,2]
[381930759,1756417839354,-480.0,0.00019178,2]
[381930760,1756417839364,-480.0,0.00019178,2]
[381930761,1756417839375,-1374.55,0.00019178,2]
[381930762,1756417839386,-480.0,0.00019178,2]
[381930763,1756417839397,-190.71,0.00019178,2]
[381930764,1756417839407,-480.0,0.00019178,2]
[381930765,1756417839416,-480.0,0.00019178,2]
[381930766,1756417839426,-480.0,0.00019178,2]
[381930767,1756417839436,-480.0,0.00019178,2]
[381930768,1756417839445,-297.64027851,0.00019178,2]
[381930769,1756417839455,-480.0,0.00019178,2]
[381930770,1756417839465,-535.01,0.00019178,2]
[381930771,1756417839474,-245.43,0.00019178,2]
[381930772,1756417839484,-480.0,0.00019178,2]
[381930773,1756417839493,-480.0,0.00019178,2]
[381930774,1756417839503,-480.0,0.00019178,2]
[381930775,1756417839512,-480.0,0.00019178,2]
[381930776,1756417839521,-480.0335565,0.00019178,2]
[381930777,1756417839531,-480.0,0.00019178,2]
[381930778,1756417839541,-481.10306388,0.00019178,2]
[381930779,1756417839550,-480.0,0.00019178,2]
[381930780,1756417839559,-215.85,0.00019178,2]
[381930781,1756417839569,-276.19,0.00019178,2]
[381930782,1756417839578,-434.02,0.00019178,2]
[381930783,1756417839587,-211.77244617,0.00019178,2]
[381930784,1756417839597,-480.0,0.00019178,2]
[381930785,1756417839607,-163.55,0.00019178,2]
[381930786,1756417839616,-480.0,0.00019178,2]
[381930787,1756417839625,-179.11423784,0.00019178,2]
[381930788,1756417839634,-480.0,0.00019178,2]
[381930789,1756417839643,-500.0,0.00019178,2]
[381930790,1756417839652,-480.0,0.00019178,2]
[381930791,1756417839661,-480.0,0.00019178,2]
[381930792,1756417839670,-446.22,0.00019178,2]
[381930793,1756417839680,-595.86,0.00019178,2]
[381930794,1756417839689,-480.0,0.00019178,2]
[381930795,1756417839698,-480.0,0.00019178,2]
[381930796,1756417839707,-2551.36,0.00019178,2]
[381930797,1756417839716,-480.0,0.00019178,2]
[381930798,1756417839725,-480.0,0.00019178,2]
[381930799,1756417839734,-480.0,0.00019178,2]
[381930800,1756417839743,-480.0,0.00019178,2]
[381930801,1756417839752,-480.0,0.00019178,2]
[381930802,1756417839761,-480.0,0.00019178,2]
[381930803,1756417839770,-480.0,0.00019178,2]
[381930804,1756417839779,-480.0,0.00019178,2]
[381930805,1756417839788,-480.0,0.00019178,2]
[381930806,1756417839797,-837.6,0.00019178,2]
[381930807,1756417839807,-480.0,0.00019178,2]
[381930808,1756417839816,-2372.0,0.00019178,2]
[381930809,1756417839825,-480.0,0.00019178,2]
[381930810,1756417839835,-480.0,0.00019178,2]
[381930811,1756417839844,-480.0,0.00019178,2]
[381930812,1756417839853,-480.0,0.00019178,2]
[381930813,1756417839863,-480.0,0.00019178,2]
[381930814,1756417839872,-478.33,0.00019178,2]
[381930815,1756417839881,-480.0,0.00019178,2]
[381930816,1756417839890,-480.0,0.00019178,2]
[381930817,1756417839900,-960.11,0.00019178,2]
[381930818,1756417839909,-480.0,0.00019178,2]
[381930819,1756417839919,-480.0,0.00019178,2]
[381930820,1756417839928,-1355.92,0.00019178,2]
[381930821,1756417839938,-480.0,0.00019178,2]
[381930822,1756417839947,-480.0,0.00019178,2]
[381930823,1756417839957,-480.0,0.00019178,2]
[381930824,1756417839967,-480.0,0.00019178,2]
[381930825,1756417839976,-480.0,0.00019178,2]
[381930828,1756417839986,-480.0,0.00019178,2]
[381930830,1756417839995,-480.0,0.00019178,2]
[381930832,1756417840004,-337.57343651,0.00019251,2]
[381930834,1756417840014,-480.0,0.00019452,2]
[381930836,1756417840024,-480.0,0.00019452,2]
[381930838,1756417840033,-480.0,0.00019452,2]
[381930840,1756417840042,-480.0,0.00019452,2]
[381930841,1756417840052,-480.0,0.00019452,2]
[381930842,1756417840063,-480.0,0.00019452,2]
[381930843,1756417840073,-480.0,0.00019452,2]
[381930844,1756417840082,-379.70577481,0.00019452,2]
[381930845,1756417840091,-480.0,0.00019452,2]
[381930846,1756417840100,-223.12,0.00019452,2]
[381930847,1756417840109,-480.0,0.00019452,2]
[381930848,1756417840118,-480.0,0.00019452,2]
[381930849,1756417840128,-480.0,0.00019452,2]
[381930850,1756417840137,-480.0,0.00019452,2]
[381930852,1756417840147,-342.67567441,0.00019452,2]
[381930854,1756417840159,-984.96,0.00019452,2]
[381930855,1756417840168,-480.0,0.00019452,2]
[381930856,1756417840178,-480.0,0.00019452,2]
[381930857,1756417840188,-480.0,0.00019452,2]
[381930858,1756417840199,-480.0,0.00019452,2]
[381930859,1756417840209,-480.0,0.00019452,2]
[381930860,1756417840218,-480.0,0.00019452,2]